lending/lending_fUSD_20240124
["ID","MTS","AMOUNT","RATE_DAILY","PERIOD"]
[312634521,1706122287530,-500.0,0.00049315,31]
[312634522,1706122287541,-500.0,0.00049315,31]
[312634523,1706122287551,-511.20386837,0.00049315,31]
[312634524,1706122287561,-500.0,0.00049315,31]
[312634525,1706122287570,-9793.91,0.00049315,31]
[312634526,1706122287580,-630.07,0.00049315,31]
[312634527,1706122287589,-500.0,0.00049315,31]
[312634528,1706122287598,-500.0,0.00049315,31]
[312634529,1706122287607,-506.79159154,0.00049315,31]
[312634530,1706122287616,-1085.19,0.00049315,31]
[312634531,1706122287626,-500.0,0.00049315,31]
[312634532,1706122287635,-733.81,0.00049315,31]
[312634533,1706122287645,-500.0,0.00049315,31]
[312634534,1706122287655,-500.0,0.00049315,31]
[312634535,1706122287664,-500.0,0.00049315,31]
[312634536,1706122287674,-500.0,0.00049315,31]
[312634537,1706122287684,-822.62,0.00049315,31]
[312634538,1706122287692,-500.0,0.00049315,31]
[312634539,1706122287702,-500.0,0.00049315,31]
[312634540,1706122287711,-500.0,0.00049315,31]
[312634541,1706122287720,-500.0,0.00049315,31]
[312634542,1706122287729,-500.0,0.00049315,31]
[312634543,1706122287739,-786.38,0.00049315,31]
[312634544,1706122287748,-500.0,0.00049315,31]
[312634545,1706122287758,-5724.55,0.00049315,31]
[312634546,1706122287767,-500.0,0.00049315,31]
[312634547,1706122287776,-2304.75,0.00049315,31]
[312634548,1706122287787,-500.0,0.00049315,31]
[312634549,1706122287796,-1000.0,0.00049315,2]
[312634550,1706122287805,-583.81,0.00049315,31]
[312634551,1706122287815,-500.0,0.00049315,31]
[312634552,1706122287824,-1209.52,0.00049315,31]
[312634553,1706122287834,-500.0,0.00049315,31]
[312634554,1706122287844,-500.0,0.00049315,31]
[312634555,1706122287853,-500.0,0.00049315,31]
[312634556,1706122287863,-500.0,0.00049315,31]
[312634557,1706122287873,-500.0,0.00049315,31]
[312634558,1706122287882,-566.16704635,0.00049315,31]
[312634559,1706122287892,-921.04,0.00049315,31]
[312634560,1706122287901,-528.23064906,0.00049315,31]
[312634561,1706122287911,-1294.87,0.00049315,31]
[312634562,1706122287921,-593.18,0.00049315,31]
[312634563,1706122287930,-500.0,0.00049315,31]
[312634564,1706122287939,-503.35426391,0.00049315,31]
[312634565,1706122287950,-500.0,0.00049315,31]
[312634566,1706122287959,-500.0,0.00049315,31]
[312634567,1706122287969,-500.0,0.00049315,31]
[312634568,1706122287979,-604.69,0.00049315,31]
[312634569,1706122287988,-650.95,0.00049315,31]
[312634570,1706122287999,-1239.0,0.00049315,31]
[312634571,1706122288008,-1539.95,0.00049315,31]
[312634572,1706122288018,-8834.98,0.00049315,31]
[312634573,1706122288027,-500.0,0.00049315,31]
[312634574,1706122288039,-516.51292786,0.00049315,31]
[312634575,1706122288049,-500.0,0.00049315,31]
[312634576,1706122288059,-547.48,0.00049315,31]
[312634577,1706122288070,-500.0,0.00049315,31]
[312634578,1706122288079,-500.0,0.00049315,31]
[312634579,1706122288089,-1282.38,0.00049315,31]
[312634580,1706122288099,-2142.95,0.00049315,7]
[312634581,1706122288110,-966.05,0.00049315,31]
[312634582,1706122288119,-646.44,0.00049315,31]
[312634583,1706122288129,-747.91,0.00049315,31]
[312634584,1706122288138,-1871.41,0.00049315,31]
[312634585,1706122288148,-912.87,0.00049315,31]
[312634586,1706122288157,-1116.62,0.00049315,31]
[312634587,1706122288167,-833.57,0.00049315,31]
[312634588,1706122288177,-500.0,0.00049315,31]
[312634589,1706122288186,-500.0,0.00049315,31]
[312634590,1706122288196,-500.0,0.00049315,31]
[312634591,1706122288206,-500.0,0.00049315,31]
[312634592,1706122288215,-500.0,0.00049315,31]
[312634593,1706122288225,-1268.63,0.00049315,31]
[312634594,1706122288235,-657.31,0.00049315,31]
[312634595,1706122288244,-500.0,0.00049315,31]
[312634596,1706122288254,-500.0,0.00049315,31]
[312634597,1706122288264,-503.27345333,0.00049315,31]
[312634598,1706122288277,-500.0,0.00049315,31]
[312634599,1706122288288,-209.75210795,0.00049315,31]
[312634600,1706122288298,-500.0,0.00049315,31]
[312634601,1706122288309,-443.5561035,0.00049315,31]
[312634602,1706122288319,-500.0,0.00049315,31]
[312634603,1706122288329,-500.0,0.00049315,31]
[312634604,1706122288339,-1207.08,0.00049315,31]
[312634605,1706122288349,-731.18,0.00049315,31]
[312634606,1706122288359,-1174.69,0.00049315,31]
[312634607,1706122288370,-500.0,0.00049315,31]
[312634608,1706122288379,-500.0,0.00049315,31]
[312634609,1706122288389,-500.0,0.00049315,31]
[312634610,1706122288400,-500.0,0.00049315,31]
[312634611,1706122288409,-950.0,0.00049315,7]
[312634612,1706122288419,-2581.31,0.00049315,31]
[312634613,1706122288430,-740.71,0.00049315,31]
[312634614,1706122288440,-1329.41,0.00049315,31]
[312634615,1706122288450,-526.5302364,0.00049315,31]
[312634616,1706122288460,-512.27597248,0.00049315,31]
[312634617,1706122288471,-500.0,0.00049315,31]
[312634618,1706122288481,-1378.41,0.00049315,31]
[312634619,1706122288491,-545.75,0.00049315,31]
[312634620,1706122288501,-500.0,0.00049315,31]
[312634621,1706122288511,-500.0,0.00049315,31]
[312634622,1706122288521,-504.42883629,0.00049315,31]
[312634623,1706122288531,-321.94707203,0.00049315,31]
[312634624,1706122288542,-500.0,0.00049315,31]
[312634625,1706122288552,-1309.93,0.00049315,31]
[312634626,1706122288562,-500.0,0.00049315,31]
[312634627,1706122288572,-214.97985893,0.00049315,31]
[312634628,1706122288583,-500.0,0.00049315,31]
[312634629,1706122288593,-500.0,0.00049315,31]
[312634630,1706122288603,-973.63,0.00049315,31]
[312634631,1706122288614,-522.97198369,0.00049315,31]
[312634632,1706122288625,-500.0,0.00049315,31]
[312634633,1706122288635,-500.0,0.00049315,31]
[312634634,1706122288645,-500.0,0.00049315,31]
[312634635,1706122288656,-500.0,0.00049315,31]
[312634636,1706122288666,-500.0,0.00049315,31]
[312634637,1706122288676,-1370.14,0.00049315,31]
[312634638,1706122288687,-500.0,0.00049315,31]
[312634639,1706122288697,-500.0,0.00049315,31]
[312634640,1706122288708,-500.0,0.00049315,31]
[312634641,1706122288719,-500.0,0.00049315,31]
[312634642,1706122288730,-500.0,0.00049315,31]
[312634643,1706122288741,-625.5,0.00049315,31]
[312634644,1706122288751,-500.0,0.00049315,31]
[312634645,1706122288761,-561.88,0.00049315,31]
[312634646,1706122288771,-500.0,0.00049315,31]
[312634647,1706122288782,-500.0,0.00049315,31]
[312634648,1706122288794,-500.0,0.00049315,31]
[312634649,1706122288805,-500.0,0.00049315,31]
[312634650,1706122288815,-1086.56,0.00049315,31]
[312634651,1706122288825,-1202.1,0.00049315,31]
[312634652,1706122288836,-712.36,0.00049315,31]
[312634653,1706122288846,-500.0,0.00049315,31]
[312634654,1706122288857,-1256.89,0.00049315,31]
[312634655,1706122288866,-4191.4,0.00049315,31]
[312634656,1706122288876,-500.0,0.00049315,31]
[312634657,1706122288886,-500.0,0.00049315,31]
[312634658,1706122288896,-1151.56,0.00049315,31]
[312634659,1706122288906,-500.0,0.00049315,31]
[312634660,1706122288917,-593.19,0.00049315,31]
[312634661,1706122288952,-500.0,0.00049315,31]
[312634662,1706122288963,-500.0,0.00049315,31]
[312634663,1706122288973,-500.0,0.00049315,31]
[312634664,1706122288984,-1249.41,0.00049315,31]
[312634665,1706122288995,-500.0,0.00049315,31]
[312634666,1706122289006,-500.0,0.00049315,31]
[312634667,1706122289017,-500.0,0.00049315,31]
[312634668,1706122289027,-500.0,0.00049315,31]
[312634669,1706122289038,-500.0,0.00049315,31]
[312634670,1706122289049,-500.0,0.00049315,31]
[312634671,1706122289059,-504.99936697,0.00049315,31]
[312634672,1706122289070,-500.0,0.00049315,31]
[312634673,1706122289081,-500.0,0.00049315,31]
[312634674,1706122289092,-500.0,0.00049315,31]
[312634675,1706122289103,-500.0,0.00049315,31]
[312634676,1706122289114,-500.0,0.00049315,31]
[312634677,1706122289124,-500.0,0.00049315,31]
[312634678,1706122289134,-1307.18,0.00049315,31]
[312634679,1706122289144,-500.0,0.00049315,31]
[312634680,1706122289154,-795.62,0.00049315,31]
[312634681,1706122289164,-500.0,0.00049315,31]
[312634682,1706122289175,-749.12,0.00049315,31]
[312634683,1706122289185,-500.0,0.00049315,14]
[312634684,1706122289195,-696.33,0.00049315,31]
[312634685,1706122289205,-545.58427004,0.00049315,31]
[312634686,1706122289215,-500.0,0.00049315,31]
[312634687,1706122289226,-1284.18,0.00049315,31]
[312634688,1706122289235,-652.98,0.00049315,31]
[312634689,1706122289245,-981.53,0.00049315,31]
[312634690,1706122289254,-523.2,0.00049315,31]
[312634691,1706122289265,-648.47,0.00049315,31]
[312634692,1706122289277,-510.01,0.00049315,31]
[312634693,1706122289289,-500.0,0.00049315,31]
[312634694,1706122289299,-500.0,0.00049315,31]
[312634695,1706122289310,-609.97,0.00049315,31]
[312634696,1706122289323,-500.0,0.00049315,31]
[312634697,1706122289333,-668.31,0.00049315,31]
[312634698,1706122289343,-1472.4,0.00049315,31]
[312634699,1706122289355,-500.0,0.00049315,31]
[312634700,1706122289366,-982.27,0.00049315,31]
[312634701,1706122289376,-500.0,0.00049315,31]
[312634702,1706122289387,-500.0,0.00049315,31]
[312634703,1706122289397,-500.0,0.00049315,31]
[312634704,1706122289407,-500.0,0.00049315,31]
[312634705,1706122289416,-975.67,0.00049315,31]
[312634706,1706122289427,-1275.47,0.00049315,20]
[312634707,1706122289437,-500.0,0.00049315,31]
[312634708,1706122289447,-859.46,0.00049315,31]
[312634709,1706122289456,-500.0,0.00049315,31]
[312634710,1706122289466,-500.0,0.00049315,31]
[312634711,1706122289477,-2167.45,0.00049315,31]
[312634712,1706122289486,-500.0,0.00049315,31]
[312634713,1706122289497,-500.0,0.00049315,31]
[312634714,1706122289506,-500.0,0.00049315,31]
[312634715,1706122289517,-500.0,0.00049315,31]
[312634716,1706122289527,-500.0,0.00049315,31]
[312634717,1706122289538,-666.0,0.00049315,31]
[312634718,1706122289548,-503.65734275,0.00049315,31]
[312634719,1706122289558,-1089.95,0.00049315,31]
[312634720,1706122289567,-641.64,0.00049315,31]
[312634721,1706122289577,-500.0,0.00049315,31]
[312634722,1706122289588,-515.02036339,0.00049315,31]
[312634723,1706122289598,-1430.01,0.00049315,31]
[312634724,1706122289608,-924.64,0.00049315,31]
[312634725,1706122289618,-1044.48390991,0.00049315,7]
[312634726,1706122289628,-500.0,0.00049315,31]
[312634727,1706122289637,-536.15,0.00049315,31]
[312634728,1706122289648,-589.35,0.00049315,31]
[312634729,1706122289657,-513.92284756,0.00049315,31]
[312634730,1706122289667,-1564.68,0.00049315,31]
[312634731,1706122289678,-500.0,0.00049315,31]
[312634732,1706122289689,-500.0,0.00049315,31]
[312634733,1706122289699,-500.0,0.00049315,31]
[312634734,1706122289710,-500.0,0.00049315,31]
[312634735,1706122289720,-6481.22,0.00049315,31]
[312634736,1706122289730,-1129.08,0.00049315,31]
[312634737,1706122289740,-944.64,0.00049315,31]
[312634738,1706122289750,-500.0,0.00049315,31]
[312634739,1706122289760,-500.0,0.00049315,31]
[312634740,1706122289771,-500.0,0.00049315,31]
[312634741,1706122289782,-500.0,0.00049315,31]
[312634742,1706122289793,-500.0,0.00049315,31]
[312634743,1706122289804,-500.0,0.00049315,30]
[312634744,1706122289814,-1816.2,0.00049315,31]
[312634745,1706122289824,-500.0,0.00049315,31]
[312634746,1706122289834,-500.0,0.00049315,31]
[312634747,1706122289845,-500.0,0.00049315,31]
[312634748,1706122289855,-500.0,0.00049315,31]
[312634749,1706122289865,-887.53,0.00049315,31]
[312634750,1706122289875,-677.18,0.00049315,31]
[312634751,1706122289885,-1137.33,0.00049315,31]
[312634752,1706122289894,-952.51,0.00049315,31]
[312634753,1706122289903,-1033.79,0.00049315,31]
[312634754,1706122289913,-750.26,0.00049315,31]
[312634755,1706122289923,-500.0,0.00049315,31]
[312634756,1706122289932,-500.0,0.00049315,31]
[312634757,1706122289942,-500.0,0.00049315,7]
[312634758,1706122289953,-500.0,0.00049315,31]
[312634759,1706122289962,-616.97,0.00049315,31]
[312634760,1706122289972,-500.0,0.00049315,31]
[312634761,1706122289982,-500.0,0.00049315,31]
[312634762,1706122289991,-1156.88,0.00049315,31]
[312634763,1706122290001,-500.0,0.00049315,31]
[312634764,1706122290011,-575.07,0.00049315,31]
[312634765,1706122290043,-503.65736316,0.00049315,31]
[312634766,1706122290052,-500.0,0.00049315,31]
[312634767,1706122290062,-500.0,0.00049315,31]
[312634768,1706122290072,-500.0,0.00049315,31]
[312634769,1706122290081,-500.0,0.00049315,31]
[312634770,1706122290090,-722.69,0.00049315,31]
[312634771,1706122290099,-7701.48,0.00049315,15]
[312634772,1706122290109,-500.0,0.00049315,31]
[312634773,1706122290118,-500.0,0.00049315,31]
[312634774,1706122290127,-502.24758155,0.00049315,31]
[312634775,1706122290137,-500.0,0.00049315,31]
[312634776,1706122290147,-508.6,0.00049315,31]
[312634777,1706122290156,-500.0,0.00049315,31]
[312634778,1706122290166,-571.75,0.00049315,31]
[312634779,1706122290175,-500.0,0.00049315,31]
[312634780,1706122290185,-588.05,0.00049315,31]
[312634781,1706122290194,-532.52,0.00049315,31]
[312634782,1706122290204,-500.0,0.00049315,31]
[312634783,1706122290213,-500.0,0.00049315,31]
[312634784,1706122290223,-500.0,0.00049315,31]
[312634785,1706122290232,-828.94,0.00049315,31]
[312634786,1706122290242,-500.0,0.00049315,31]
[312634787,1706122290251,-622.58296774,0.00049315,2]
[312634788,1706122290261,-500.0,0.00049315,30]
[312634789,1706122290271,-1048.36,0.00049315,31]
[312634790,1706122290285,-500.0,0.00049315,31]
[312634791,1706122290295,-500.0,0.00049315,2]
[312634792,1706122290305,-732.05,0.00049315,31]
[312634793,1706122290314,-500.0,0.00049315,31]
[312634794,1706122290327,-500.0,0.00049315,31]
[312634795,1706122290337,-952.74,0.00049315,31]
[312634796,1706122290347,-500.0,0.00049315,31]
[312634797,1706122290358,-1176.12,0.00049315,31]
[312634798,1706122290369,-1417.3,0.00049315,2]
[312634799,1706122290379,-1220.83,0.00049315,31]
[312634800,1706122290388,-500.0,0.00049315,31]
[312634801,1706122290398,-640.47318858,0.00049315,31]
[312634802,1706122290407,-921.3,0.00049315,31]
[312634803,1706122290417,-897.04,0.00049315,31]
[312634804,1706122290427,-500.0,0.00049315,31]
[312634805,1706122290437,-5880.03,0.00049315,31]
[312634806,1706122290447,-1858.89,0.00049315,31]
[312634807,1706122290457,-500.0,0.00049315,31]
[312634808,1706122290466,-500.0,0.00049315,31]
[312634809,1706122290476,-500.0,0.00049315,31]
[312634810,1706122290486,-500.0,0.00049315,31]
[312634811,1706122290689,-550.81,0.00049315,31]
[312634812,1706122290703,-500.0,0.00049315,31]
[312634813,1706122290713,-500.0,0.00049315,31]
[312634814,1706122290722,-500.0,0.00049315,31]
[312634815,1706122290732,-889.14,0.00049315,31]
[312634816,1706122290741,-500.0,0.00049315,31]
[312634817,1706122290751,-1157.35,0.00049315,31]
[312634818,1706122290760,-739.19,0.00049315,31]
[312634819,1706122290769,-634.98804044,0.00049315,31]
[312634820,1706122290778,-500.0,0.00049315,31]
[312634821,1706122290787,-1017.77,0.00049315,31]
[312634822,1706122290798,-500.0,0.00049315,31]
[312634823,1706122290808,-500.0,0.00049315,31]
[312634824,1706122290817,-500.0,0.00049315,31]
[312634825,1706122290826,-191.48822322,0.00049315,31]
[312634826,1706122290837,-899.45,0.00049315,31]
[312634827,1706122290846,-500.0,0.00049315,31]
[312634828,1706122290856,-1542.77,0.00049315,31]
[312634829,1706122290866,-500.0,0.00049315,31]
[312634830,1706122290875,-552.43321667,0.00049315,31]
[312634831,1706122290888,-500.0,0.00049315,31]
[312634832,1706122290898,-502.38,0.00049315,31]
[312634833,1706122290908,-1135.37,0.00049315,31]
[312634834,1706122290917,-1208.25,0.00049315,31]
[312634835,1706122290927,-162.955583,0.00049315,14]
[312634836,1706122290936,-151.0,0.00049315,14]
[312634837,1706122290945,-151.0,0.00049315,14]
[312634838,1706122290954,-172.530043,0.00049315,14]
[312634839,1706122290963,-151.0,0.00049315,14]
[312634840,1706122290972,-151.0,0.00049315,14]
[312634841,1706122290982,-151.0,0.00049315,14]
[312634842,1706122290991,-151.0,0.00049315,7]
[312634843,1706122291000,-332.57745,0.00049315,14]
[312634844,1706122291009,-332.57745,0.00049315,14]
[312634845,1706122291018,-153.748065,0.00049315,14]
[312634846,1706122291027,-153.748065,0.00049315,14]
[312634847,1706122291037,-151.0,0.00049315,14]
[312634848,1706122291047,-151.0,0.00049315,14]
[312634849,1706122291057,-8252.892325,0.00049315,14]
[312634850,1706122291066,-8252.892325,0.00049315,14]
[312634851,1706122291076,-161.289658,0.00049315,14]
[312634852,1706122291086,-161.289658,0.00049315,14]
[312634853,1706122291095,-221.608802,0.00049315,14]
[312634854,1706122291105,-221.608802,0.00049315,14]
[312634855,1706122291115,-385.695419,0.00049315,14]
[312634856,1706122291125,-385.695419,0.00049315,14]
[312634857,1706122291134,-152.923273,0.00049315,14]
[312634858,1706122291145,-180.313812,0.00049315,14]
[312634859,1706122291155,-180.313812,0.00049315,14]
[312634860,1706122291164,-291.573217,0.00049315,14]
[312634861,1706122291173,-291.573217,0.00049315,14]
[312634862,1706122291183,-151.0,0.00049315,14]
[312634863,1706122291192,-151.0,0.00049315,14]
[312634864,1706122291201,-318.305467,0.00049315,14]
[312634865,1706122291211,-318.305467,0.00049315,14]
[312634866,1706122291220,-150.0,0.00049355,30]
[312634867,1706122291229,-150.0,0.00049355,30]
[312634868,1706122291239,-150.0,0.00049361,30]
[312634869,1706122291248,-2163.0,0.0004939,2]
[312634870,1706122291257,-2013.56,0.000494,2]
[312634871,1706122291266,-150.0,0.0004941,30]
[312634872,1706122291281,-888.0125,0.00049448,20]
[312634873,1706122291291,-581.05104019,0.00049448,18]
[312634874,1706122291301,-150.0,0.00049452,30]
[312634875,1706122291311,-1212.1852877,0.00049452,14]
[312634876,1706122291323,-150.0,0.00049459,2]
[312634877,1706122291332,-2500.0,0.00049463,7]
[312634878,1706122291341,-150.0,0.00049465,30]
[312634879,1706122291352,-150.0,0.0004947,30]
[312634880,1706122291362,-58955.04824887,0.00049489,11]
[312634881,1706122291373,-24508.0,0.0004949,2]
[312634882,1706122291382,-11960.0,0.0004949,2]
[312634883,1706122291391,-150.0,0.00049519,30]
[312634884,1706122291402,-150.0,0.00049519,30]
[312634885,1706122291412,-1000.0,0.00049519,10]
[312634886,1706122291423,-150.0,0.00049543,30]
[312634887,1706122291433,-122338.9811936,0.00049555,2]
[312634888,1706122291442,-10005.9630108,0.00049555,2]
[312634889,1706122291452,-5514.7375695,0.00049555,2]
[312634890,1706122291462,-151.0,0.00049555,14]
[312634891,1706122291471,-151.0,0.00049555,7]
[312634892,1706122291481,-332.57745,0.00049555,14]
[312634893,1706122291491,-332.57745,0.00049555,14]
[312634894,1706122291500,-153.748065,0.00049555,14]
[312634895,1706122291510,-153.748065,0.00049555,14]
[312634896,1706122291521,-150.0,0.00049574,30]
[312634897,1706122291531,-697.53,0.00049589,31]
[312634898,1706122291542,-632.99,0.00049589,31]
[312634899,1706122291553,-503.8838141,0.00049589,31]
[312634900,1706122291563,-524.08255858,0.00049589,31]
[312634901,1706122291573,-514.6371107,0.00049589,31]
[312634902,1706122291583,-524.36612672,0.00049589,31]
[312634903,1706122291594,-407.81654474,0.00049589,31]
[312634904,1706122291603,-509.132271,0.00049589,31]
[312634905,1706122291613,-500.0,0.00049589,31]
[312634906,1706122291623,-500.0,0.00049589,31]
[312634907,1706122291633,-500.0,0.00049589,31]
[312634908,1706122291642,-500.0,0.00049589,31]
[312634909,1706122291652,-203.51533741,0.00049589,31]
[312634910,1706122291662,-575.9505705,0.00049589,31]
[312634911,1706122291672,-500.0,0.00049589,31]
[312634912,1706122291682,-500.0,0.00049589,31]
[312634913,1706122291691,-500.0,0.00049589,31]
[312634914,1706122291702,-500.0,0.00049589,31]
[312634915,1706122291711,-500.0,0.00049589,31]
[312634916,1706122291722,-500.0,0.00049589,31]
[312634917,1706122291731,-509.47744846,0.00049589,31]
[312634918,1706122291741,-500.0,0.00049589,31]
[312634919,1706122291751,-500.0,0.00049589,31]
[312634920,1706122291761,-500.0,0.00049589,31]
[312634921,1706122291771,-500.0,0.00049589,31]
[312634922,1706122291781,-500.0,0.00049589,31]
[312634923,1706122291793,-500.0,0.00049589,31]
[312634924,1706122291804,-352.20996647,0.00049589,31]
[312634925,1706122291814,-500.0,0.00049589,31]
[312634926,1706122291824,-500.0,0.00049589,31]
[312634927,1706122291834,-500.0,0.00049589,31]
[312634928,1706122291844,-500.0,0.00049589,31]
[312634929,1706122291855,-502.07799866,0.00049589,31]
[312634930,1706122291866,-500.0,0.00049589,31]
[312634931,1706122291876,-500.0,0.00049589,31]
[312634932,1706122291887,-500.0,0.00049589,31]
[312634933,1706122291897,-500.0,0.00049589,31]
[312634934,1706122291908,-500.0,0.00049589,31]
[312634935,1706122291918,-500.0,0.00049589,31]
[312634936,1706122291928,-237.19443912,0.00049589,31]
[312634937,1706122291938,-500.0,0.00049589,31]
[312634938,1706122291949,-500.0,0.00049589,31]
[312634939,1706122291960,-500.0,0.00049589,31]
[312634940,1706122291970,-500.0,0.00049589,31]
[312634941,1706122291980,-500.0,0.00049589,31]
[312634942,1706122291991,-500.0,0.00049589,31]
[312634943,1706122292002,-511.89601096,0.00049589,31]
[312634944,1706122292012,-500.0,0.00049589,31]
[312634945,1706122292022,-500.0,0.00049589,31]
[312634946,1706122292032,-500.0,0.00049589,31]
[312634947,1706122292043,-500.0,0.00049589,31]
[312634948,1706122292056,-513.26,0.00049589,31]
[312634949,1706122292067,-293.72325239,0.00049589,31]
[312634950,1706122292078,-500.0,0.00049589,31]
[312634951,1706122292089,-500.0,0.00049589,31]
[312634952,1706122292099,-512.96872931,0.00049589,31]
[312634953,1706122292109,-500.0,0.00049589,31]
[312634954,1706122292119,-500.0,0.00049589,31]
[312634955,1706122292130,-324.26638055,0.00049589,31]
[312634956,1706122292140,-500.0,0.00049589,31]
[312634957,1706122292150,-500.0,0.00049589,31]
[312634958,1706122292159,-521.9952121,0.00049589,31]
[312634959,1706122292169,-500.0,0.00049589,31]
[312634960,1706122292180,-507.92384229,0.00049589,31]
[312634961,1706122292190,-532.8,0.00049589,31]
[312634962,1706122292200,-500.0,0.00049589,31]
[312634963,1706122292211,-500.0,0.00049589,31]
[312634964,1706122292222,-500.0,0.00049589,31]
[312634965,1706122292232,-500.0,0.00049589,31]
[312634966,1706122292242,-500.0,0.00049589,31]
[312634967,1706122292252,-500.0,0.00049589,31]
[312634968,1706122292262,-500.0,0.00049589,31]
[312634969,1706122292274,-500.0,0.00049589,31]
[312634970,1706122292286,-500.0,0.00049589,31]
[312634971,1706122292302,-538.1404553,0.00049589,31]
[312634972,1706122292312,-500.0,0.00049589,31]
[312634973,1706122292324,-500.0,0.00049589,31]
[312634974,1706122292335,-500.0,0.00049589,31]
[312634975,1706122292346,-500.0,0.00049589,31]
[312634976,1706122292356,-500.0,0.00049589,31]
[312634977,1706122292368,-506.28842594,0.00049589,31]
[312634978,1706122292379,-944.33,0.00049589,31]
[312634979,1706122292390,-510.31,0.00049589,31]
[312634980,1706122292401,-500.0,0.00049589,31]
[312634981,1706122292412,-500.0,0.00049589,31]
[312634982,1706122292423,-500.0,0.00049589,31]
[312634983,1706122292434,-500.0,0.00049589,31]
[312634984,1706122292446,-500.0,0.00049589,31]
[312634985,1706122292458,-500.0,0.00049589,31]
[312634986,1706122292469,-513.94319517,0.00049589,31]
[312634987,1706122292481,-500.0,0.00049589,31]
[312634988,1706122292492,-500.0,0.00049589,31]
[312634989,1706122292503,-500.0,0.00049589,31]
[312634990,1706122292513,-524.6326369,0.00049589,31]
[312634991,1706122292524,-500.0,0.00049589,31]
[312634992,1706122292535,-500.0,0.00049589,31]
[312634993,1706122292548,-715.29,0.00049589,31]
[312634994,1706122292559,-500.0,0.00049589,31]
[312634995,1706122292570,-500.0,0.00049589,31]
[312634996,1706122292585,-500.0,0.00049589,31]
[312634997,1706122292596,-500.0,0.00049589,31]
[312634998,1706122292607,-500.0,0.00049589,31]
[312634999,1706122292617,-1227.94,0.00049589,31]
[312635000,1706122292629,-572.94,0.00049589,31]
[312635001,1706122292639,-518.75,0.00049589,31]
[312635002,1706122292650,-547.66749623,0.00049589,31]
[312635003,1706122292661,-500.0,0.00049589,31]
[312635004,1706122292672,-500.0,0.00049589,31]
[312635005,1706122292683,-500.0,0.00049589,31]
[312635006,1706122292694,-500.0,0.00049589,31]
[312635007,1706122292706,-500.0,0.00049589,31]
[312635008,1706122292717,-500.0,0.00049589,31]
[312635009,1706122292728,-666.04,0.00049589,31]
[312635010,1706122292739,-500.0,0.00049589,31]
[312635011,1706122292750,-500.0,0.00049589,31]
[312635012,1706122292760,-500.0,0.00049589,31]
[312635013,1706122292772,-626.84,0.00049589,31]
[312635014,1706122292783,-500.0,0.00049589,31]
[312635015,1706122292796,-500.0,0.00049589,31]
[312635016,1706122292807,-500.0,0.00049589,31]
[312635017,1706122292818,-500.0,0.00049589,31]
[312635018,1706122292829,-500.0,0.00049589,31]
[312635019,1706122292839,-557.55,0.00049589,31]
[312635020,1706122292850,-643.22909081,0.00049589,31]